[Event "Live Chess"]
[Site "Chess.com"]
[Date "2023.05.21"]
[Round "-"]
[White "gmnorfolk"]
[Black "McSlash1"]
[Result "1-0"]
[WhiteElo "2121"]
[BlackElo "1967"]
[TimeControl "300"]
[EndTime "8:42:12 PDT"]
[Termination "gmnorfolk won by resignation"]

1. d4 {[%clk 0:04:58.5]} 1... Nf6 {[%clk 0:04:59]} 2. c4 {[%clk 0:04:57.4]} 2...
g6 {[%clk 0:04:58.6]} 3. Nc3 {[%clk 0:04:56.6]} 3... d5 {[%clk 0:04:58.3]} 4.
cxd5 {[%clk 0:04:55.6]} 4... Nxd5 {[%clk 0:04:58.2]} 5. e4 {[%clk 0:04:54.7]}
5... Nxc3 {[%clk 0:04:57.9]} 6. bxc3 {[%clk 0:04:54.1]} 6... Bg7 {[%clk
0:04:57.8]} 7. Nf3 {[%clk 0:04:52.8]} 7... O-O {[%clk 0:04:57.4]} 8. Be2 {[%clk
0:04:45.4]} 8... Bg4 {[%clk 0:04:56.9]} 9. O-O {[%clk 0:04:43.3]} 9... c5 {[%clk
0:04:56.5]} 10. Be3 {[%clk 0:04:42.2]} 10... Nc6 {[%clk 0:04:55.8]} 11. d5
{[%clk 0:04:41.6]} 11... Bxf3 {[%clk 0:04:54]} 12. dxc6 {[%clk 0:04:32.8]} 12...
Bxe2 {[%clk 0:04:52.3]} 13. Qxe2 {[%clk 0:04:32.4]} 13... b6 {[%clk 0:04:47.7]}
14. Rfd1 {[%clk 0:04:16.5]} 14... Qc7 {[%clk 0:04:45.6]} 15. Qb5 {[%clk
0:04:10.8]} 15... Rfd8 {[%clk 0:04:43.2]} 16. Rd7 {[%clk 0:03:57.4]} 16... Rxd7
{[%clk 0:04:40.2]} 17. cxd7 {[%clk 0:03:56.1]} 17... a6 {[%clk 0:04:36.6]} 18.
Qa4 {[%clk 0:03:48.2]} 18... b5 {[%clk 0:04:36]} 19. Qa3 {[%clk 0:03:46.7]}
19... c4 {[%clk 0:04:33.6]} 20. Rd1 {[%clk 0:03:43.7]} 20... Bf8 {[%clk
0:04:31.5]} 21. Qc1 {[%clk 0:03:32.2]} 21... Rd8 {[%clk 0:04:29.7]} 22. Qd2
{[%clk 0:03:28.1]} 22... e6 {[%clk 0:04:28.8]} 23. Bg5 {[%clk 0:03:19.3]} 23...
a5 {[%clk 0:04:17.7]} 24. Bxd8 {[%clk 0:03:13.6]} 24... Qxd8 {[%clk 0:04:17.6]}
25. Qd4 {[%clk 0:03:11]} 25... Be7 {[%clk 0:04:13.7]} 26. Qa7 {[%clk 0:03:06.9]}
26... b4 {[%clk 0:04:08]} 27. Qb7 {[%clk 0:03:01.1]} 27... Kg7 {[%clk
0:03:59.4]} 28. Qc8 {[%clk 0:02:57.7]} 28... b3 {[%clk 0:03:55.4]} 29. Qxc4
{[%clk 0:02:50.9]} 29... b2 {[%clk 0:03:53.6]} 30. Qb3 {[%clk 0:02:49.6]} 30...
Bf6 {[%clk 0:03:46.3]} 31. Qxb2 {[%clk 0:02:46]} 31... Qc7 {[%clk 0:03:43.4]}
32. Qd2 {[%clk 0:02:42.8]} 32... Bd8 {[%clk 0:03:41.5]} 33. Qd4+ {[%clk
0:02:41.2]} 33... Kh6 {[%clk 0:03:39.3]} 34. c4 {[%clk 0:02:36.2]} 34... e5
{[%clk 0:03:30.8]} 35. Qd5 {[%clk 0:02:31.8]} 35... a4 {[%clk 0:03:15.7]} 36. c5
{[%clk 0:02:27]} 36... f5 {[%clk 0:03:10.8]} 37. exf5 {[%clk 0:02:22.8]} 37...
gxf5 {[%clk 0:03:10.7]} 38. Qd6+ {[%clk 0:02:18.5]} 1-0

[Event "Live Chess"]
[Site "Chess.com"]
[Date "2023.05.21"]
[Round "-"]
[White "AyannaTang"]
[Black "slava_ukr"]
[Result "0-1"]
[WhiteElo "230"]
[BlackElo "2347"]
[TimeControl "300"]
[EndTime "8:42:14 PDT"]
[Termination "slava_ukr won by checkmate"]

1. e4 {[%clk 0:04:56.5]} 1... e5 {[%clk 0:04:57.9]} 2. d4 {[%clk 0:04:48.2]}
2... exd4 {[%clk 0:04:56.4]} 3. Bf4 {[%clk 0:04:45]} 3... Nc6 {[%clk 0:04:52.8]}
4. Bc4 {[%clk 0:04:37.8]} 4... d6 {[%clk 0:04:36.7]} 5. Nf3 {[%clk 0:04:35.3]}
5... Nf6 {[%clk 0:04:34.9]} 6. Na3 {[%clk 0:04:31.3]} 6... Be7 {[%clk
0:04:31.9]} 7. Bb5 {[%clk 0:04:26.5]} 7... O-O {[%clk 0:04:29.4]} 8. Bxc6 {[%clk
0:04:24.5]} 8... bxc6 {[%clk 0:04:28.5]} 9. Bg5 {[%clk 0:04:22.7]} 9... Nxe4
{[%clk 0:04:26.2]} 10. Bxe7 {[%clk 0:04:14.5]} 10... Qxe7 {[%clk 0:04:25.5]} 11.
Qxd4 {[%clk 0:04:10.7]} 11... Ng3+ {[%clk 0:04:15.7]} 12. Qe3 {[%clk 0:03:43.9]}
12... Qxe3+ {[%clk 0:04:13.2]} 13. fxe3 {[%clk 0:03:42.7]} 13... Nxh1 {[%clk
0:04:11]} 14. Ng1 {[%clk 0:03:40.5]} 14... Re8 {[%clk 0:04:03.9]} 15. O-O-O
{[%clk 0:03:33.3]} 15... Nf2 {[%clk 0:04:00.6]} 16. Rf1 {[%clk 0:03:30.5]} 16...
Ng4 {[%clk 0:03:56.4]} 17. Nc4 {[%clk 0:03:24.1]} 17... Ba6 {[%clk 0:03:54.5]}
18. Na5 {[%clk 0:03:18.4]} 18... Bxf1 {[%clk 0:03:52.1]} 19. Nf3 {[%clk
0:03:07]} 19... Bxg2 {[%clk 0:03:49.8]} 20. Ne1 {[%clk 0:03:03.5]} 20... Be4
{[%clk 0:03:45.7]} 21. c4 {[%clk 0:02:56.4]} 21... Nxe3 {[%clk 0:03:43.9]} 22.
Kd2 {[%clk 0:02:32.3]} 22... Ng2 {[%clk 0:03:42.1]} 23. Nxg2 {[%clk 0:02:30.8]}
23... Bxg2 {[%clk 0:03:41.1]} 24. Kd1 {[%clk 0:02:28.8]} 24... Bf3+ {[%clk
0:03:39.2]} 25. Kd2 {[%clk 0:02:25.8]} 25... Re2+ {[%clk 0:03:37.9]} 26. Kd3
{[%clk 0:02:24]} 26... Rae8 {[%clk 0:03:36.5]} 27. Kc3 {[%clk 0:02:21.4]} 27...
c5 {[%clk 0:03:34.4]} 28. Nc6 {[%clk 0:02:18.8]} 28... R8e3# {[%clk 0:03:33]}
0-1

[Event "Live Chess"]
[Site "Chess.com"]
[Date "2023.05.21"]
[Round "-"]
[White "Duke_of_Bebington"]
[Black "stevochess11"]
[Result "1-0"]
[WhiteElo "1567"]
[BlackElo "1659"]
[TimeControl "300"]
[EndTime "8:42:18 PDT"]
[Termination "Duke_of_Bebington won by checkmate"]

1. e4 {[%clk 0:04:54.2]} 1... c5 {[%clk 0:04:59.1]} 2. c3 {[%clk 0:04:53]} 2...
g6 {[%clk 0:04:58.1]} 3. d4 {[%clk 0:04:52]} 3... cxd4 {[%clk 0:04:57.3]} 4.
cxd4 {[%clk 0:04:51.9]} 4... Nc6 {[%clk 0:04:56.4]} 5. d5 {[%clk 0:04:50.7]}
5... Ne5 {[%clk 0:04:49.5]} 6. f4 {[%clk 0:04:48.3]} 6... Bg7 {[%clk 0:04:38.7]}
7. fxe5 {[%clk 0:04:46.5]} 7... Bxe5 {[%clk 0:04:38.6]} 8. Nf3 {[%clk
0:04:41.2]} 8... Bg7 {[%clk 0:04:23.7]} 9. Nc3 {[%clk 0:04:30.3]} 9... d6 {[%clk
0:04:21.9]} 10. Bb5+ {[%clk 0:04:23.1]} 10... Bd7 {[%clk 0:04:03.9]} 11. Bxd7+
{[%clk 0:04:21.7]} 11... Qxd7 {[%clk 0:04:03.2]} 12. O-O {[%clk 0:04:21.1]}
12... Nf6 {[%clk 0:04:02.3]} 13. e5 {[%clk 0:04:15.4]} 13... dxe5 {[%clk
0:04:00.8]} 14. Nxe5 {[%clk 0:04:15.3]} 14... Qd6 {[%clk 0:03:54.2]} 15. Bf4
{[%clk 0:04:13.6]} 15... Nh5 {[%clk 0:03:51.5]} 16. Nxg6 {[%clk 0:04:05.7]}
16... Nxf4 {[%clk 0:03:48.8]} 17. Nxf4 {[%clk 0:04:03.2]} 17... Be5 {[%clk
0:03:44]} 18. Qa4+ {[%clk 0:03:55.9]} 18... Kf8 {[%clk 0:03:37.1]} 19. Ne6+
{[%clk 0:03:52.8]} 19... Kg8 {[%clk 0:03:28.4]} 20. Qg4+ {[%clk 0:03:51.6]}
20... Bg7 {[%clk 0:03:23.7]} 21. Qxg7# {[%clk 0:03:48.7]} 1-0

[Event "Live Chess"]
[Site "Chess.com"]
[Date "2023.05.21"]
[Round "-"]
[White "OleksiyJr1"]
[Black "PiotrD11"]
[Result "0-1"]
[WhiteElo "1046"]
[BlackElo "1376"]
[TimeControl "300"]
[EndTime "8:42:33 PDT"]
[Termination "PiotrD11 won by resignation"]

1. e4 {[%clk 0:04:59.2]} 1... d5 {[%clk 0:04:59]} 2. exd5 {[%clk 0:04:57.4]}
2... Nf6 {[%clk 0:04:58.6]} 3. Nc3 {[%clk 0:04:56.8]} 3... Nxd5 {[%clk
0:04:57.5]} 4. Nxd5 {[%clk 0:04:56.7]} 4... Qxd5 {[%clk 0:04:56.7]} 5. Nf3
{[%clk 0:04:54.1]} 5... e5 {[%clk 0:04:53]} 6. Qe2 {[%clk 0:04:35.2]} 6... Nc6
{[%clk 0:04:50.9]} 7. c4 {[%clk 0:04:30.6]} 7... Qe6 {[%clk 0:04:35.1]} 8. Qd3
{[%clk 0:04:23.7]} 8... Bc5 {[%clk 0:04:24.8]} 9. Be2 {[%clk 0:04:16.5]} 9...
Nb4 {[%clk 0:04:21.3]} 10. Qc3 {[%clk 0:04:08.9]} 10... Nc6 {[%clk 0:04:13.8]}
11. O-O {[%clk 0:04:07]} 11... O-O {[%clk 0:04:06.5]} 12. Bd3 {[%clk 0:04:02.2]}
12... a5 {[%clk 0:04:02.9]} 13. a4 {[%clk 0:03:59.2]} 13... Bb4 {[%clk
0:03:51.9]} 14. Qc2 {[%clk 0:03:49.7]} 14... h6 {[%clk 0:03:45.6]} 15. Re1
{[%clk 0:03:45.9]} 15... Qf6 {[%clk 0:03:43.6]} 16. b3 {[%clk 0:03:28.7]} 16...
Nd4 {[%clk 0:03:41.8]} 17. Nxd4 {[%clk 0:03:24.6]} 17... exd4 {[%clk 0:03:41.7]}
18. Bb2 {[%clk 0:03:14.7]} 18... b6 {[%clk 0:03:38.6]} 19. Re4 {[%clk 0:03:11]}
19... Bc5 {[%clk 0:03:32.7]} 20. Qc3 {[%clk 0:03:08.2]} 20... dxc3 {[%clk
0:03:30.9]} 21. Bxc3 {[%clk 0:02:50.7]} 21... Qxf2+ {[%clk 0:03:26.5]} 22. Kh1
{[%clk 0:02:47.4]} 22... Bb7 {[%clk 0:03:25.4]} 23. Re2 {[%clk 0:02:43.3]} 23...
Qxg2+ {[%clk 0:03:20.8]} 24. Rxg2 {[%clk 0:02:42.2]} 24... Bxg2+ {[%clk
0:03:18]} 25. Kxg2 {[%clk 0:02:41.5]} 25... Rad8 {[%clk 0:03:08.4]} 26. Bc2
{[%clk 0:02:38.5]} 26... Bb4 {[%clk 0:02:58.2]} 27. Be5 {[%clk 0:02:26.6]} 27...
Rxd2+ {[%clk 0:02:53.3]} 28. Kg3 {[%clk 0:02:23.4]} 28... Rxc2 {[%clk
0:02:53.2]} 0-1

[Event "Live Chess"]
[Site "Chess.com"]
[Date "2023.05.21"]
[Round "-"]
[White "yarek"]
[Black "alexlines8"]
[Result "1-0"]
[WhiteElo "1859"]
[BlackElo "1253"]
[TimeControl "300"]
[EndTime "8:42:33 PDT"]
[Termination "yarek won by resignation"]

1. e4 {[%clk 0:04:50.8]} 1... c6 {[%clk 0:04:58.2]} 2. d4 {[%clk 0:04:48.2]}
2... d5 {[%clk 0:04:57.5]} 3. exd5 {[%clk 0:04:46.4]} 3... cxd5 {[%clk
0:04:56.7]} 4. Bd3 {[%clk 0:04:45.2]} 4... Nc6 {[%clk 0:04:55.8]} 5. c3 {[%clk
0:04:44.3]} 5... Nf6 {[%clk 0:04:52.7]} 6. Bf4 {[%clk 0:04:40.9]} 6... e6 {[%clk
0:04:47.4]} 7. Nf3 {[%clk 0:04:39.4]} 7... Bd6 {[%clk 0:04:44.2]} 8. Ne5 {[%clk
0:04:36.1]} 8... Bxe5 {[%clk 0:04:37.9]} 9. dxe5 {[%clk 0:04:34.4]} 9... Nd7
{[%clk 0:04:36.2]} 10. Qg4 {[%clk 0:04:21.4]} 10... O-O {[%clk 0:04:21.4]} 11.
Bh6 {[%clk 0:04:18]} 11... g6 {[%clk 0:04:09.5]} 12. Bxf8 {[%clk 0:04:16.4]}
12... Qxf8 {[%clk 0:04:09.4]} 13. f4 {[%clk 0:04:14]} 13... b6 {[%clk
0:04:05.5]} 14. O-O {[%clk 0:04:10]} 14... a5 {[%clk 0:03:58.8]} 15. Nd2 {[%clk
0:04:07.9]} 15... Ba6 {[%clk 0:03:57.3]} 16. Bxa6 {[%clk 0:04:04]} 16... Rxa6
{[%clk 0:03:57.2]} 17. Nf3 {[%clk 0:04:01.1]} 17... Nc5 {[%clk 0:03:55.9]} 18.
h4 {[%clk 0:03:42.6]} 18... Ne4 {[%clk 0:03:49.9]} 19. h5 {[%clk 0:03:37.7]}
19... b5 {[%clk 0:03:36.3]} 20. hxg6 {[%clk 0:03:32.7]} 20... fxg6 {[%clk
0:03:35]} 21. Qxe6+ {[%clk 0:03:29.5]} 1-0

[Event "Live Chess"]
[Site "Chess.com"]
[Date "2023.05.21"]
[Round "-"]
[White "Ian-Morley"]
[Black "RichardABates"]
[Result "0-1"]
[WhiteElo "1103"]
[BlackElo "2190"]
[TimeControl "300"]
[EndTime "8:42:34 PDT"]
[Termination "RichardABates won by resignation"]

1. e4 {[%clk 0:04:56.9]} 1... c5 {[%clk 0:04:58.4]} 2. Nf3 {[%clk 0:04:52.5]}
2... d6 {[%clk 0:04:57]} 3. Bb5+ {[%clk 0:04:52.2]} 3... Bd7 {[%clk 0:04:54.7]}
4. Bxd7+ {[%clk 0:04:51.9]} 4... Qxd7 {[%clk 0:04:54]} 5. O-O {[%clk 0:04:51.6]}
5... Nc6 {[%clk 0:04:53.2]} 6. Re1 {[%clk 0:04:51.2]} 6... Nf6 {[%clk
0:04:51.8]} 7. c3 {[%clk 0:04:50.8]} 7... e6 {[%clk 0:04:50.3]} 8. d4 {[%clk
0:04:50.4]} 8... cxd4 {[%clk 0:04:49.6]} 9. cxd4 {[%clk 0:04:50]} 9... d5 {[%clk
0:04:49]} 10. exd5 {[%clk 0:04:47.7]} 10... Nxd5 {[%clk 0:04:46.9]} 11. Nc3
{[%clk 0:04:46.3]} 11... Be7 {[%clk 0:04:44.7]} 12. Nxd5 {[%clk 0:04:45.3]}
12... Qxd5 {[%clk 0:04:43.5]} 13. Ne5 {[%clk 0:04:44.5]} 13... O-O {[%clk
0:04:39.9]} 14. Nxc6 {[%clk 0:04:43.3]} 14... Qxc6 {[%clk 0:04:38.2]} 15. Be3
{[%clk 0:04:42.8]} 15... Rfd8 {[%clk 0:04:30]} 16. Qc1 {[%clk 0:04:42]} 16...
Qxc1 {[%clk 0:04:27.1]} 17. Raxc1 {[%clk 0:04:41.3]} 17... b6 {[%clk 0:04:17.6]}
18. Rc7 {[%clk 0:04:39.5]} 18... Bd6 {[%clk 0:04:14.5]} 19. Rc6 {[%clk
0:04:38.3]} 19... Rac8 {[%clk 0:04:09.9]} 20. Rxc8 {[%clk 0:04:35.9]} 20... Rxc8
{[%clk 0:04:08.6]} 21. Rc1 {[%clk 0:04:35.3]} 21... Rxc1+ {[%clk 0:04:06.2]} 22.
Bxc1 {[%clk 0:04:34.5]} 22... Kf8 {[%clk 0:04:05.2]} 23. Kf1 {[%clk 0:04:33.2]}
23... h5 {[%clk 0:04:01.4]} 24. Ke2 {[%clk 0:04:32.5]} 24... Bxh2 {[%clk
0:03:59.2]} 25. g3 {[%clk 0:04:32]} 25... h4 {[%clk 0:03:58]} 26. gxh4 {[%clk
0:04:30.7]} 26... Ke7 {[%clk 0:03:54.5]} 27. Kf3 {[%clk 0:04:29.8]} 27... Bd6
{[%clk 0:03:48.5]} 28. h5 {[%clk 0:04:28.7]} 28... Kd7 {[%clk 0:03:43.6]} 29. h6
{[%clk 0:04:22.7]} 29... gxh6 {[%clk 0:03:42.2]} 30. Bxh6 {[%clk 0:04:21.1]}
30... Kc6 {[%clk 0:03:41.3]} 31. Ke4 {[%clk 0:04:11.7]} 31... f5+ {[%clk
0:03:40]} 32. Kd3 {[%clk 0:04:08.4]} 32... Kd5 {[%clk 0:03:38.7]} 33. b3 {[%clk
0:04:00.2]} 33... Be7 {[%clk 0:03:30.4]} 34. Bf4 {[%clk 0:03:53.5]} 34... Bf6
{[%clk 0:03:26.9]} 35. Be5 {[%clk 0:03:51.9]} 35... Bxe5 {[%clk 0:03:25.2]} 36.
dxe5 {[%clk 0:03:51.3]} 36... Kxe5 {[%clk 0:03:24.5]} 37. f3 {[%clk 0:03:50.8]}
37... Kf4 {[%clk 0:03:23]} 38. Ke2 {[%clk 0:03:49.1]} 38... e5 {[%clk
0:03:21.6]} 39. a3 {[%clk 0:03:47.7]} 39... e4 {[%clk 0:03:20.5]} 40. fxe4
{[%clk 0:03:47]} 40... fxe4 {[%clk 0:03:19.7]} 41. b4 {[%clk 0:03:45.8]} 41...
b5 {[%clk 0:03:16.6]} 42. Kf2 {[%clk 0:03:41.6]} 42... e3+ {[%clk 0:03:15.2]}
43. Ke2 {[%clk 0:03:40.5]} 43... Ke4 {[%clk 0:03:14.3]} 44. Ke1 {[%clk
0:03:38.7]} 44... Kd3 {[%clk 0:03:12.6]} 45. Kd1 {[%clk 0:03:38]} 45... e2+
{[%clk 0:03:10.9]} 46. Ke1 {[%clk 0:03:37.4]} 46... a6 {[%clk 0:03:09.8]} 0-1

[Event "Live Chess"]
[Site "Chess.com"]
[Date "2023.05.21"]
[Round "-"]
[White "Hussamalhaidar"]
[Black "LL220284LL"]
[Result "0-1"]
[WhiteElo "1154"]
[BlackElo "2237"]
[TimeControl "300"]
[EndTime "8:42:36 PDT"]
[Termination "LL220284LL won by resignation"]

1. b3 {[%clk 0:04:54.7]} 1... c5 {[%clk 0:04:58.3]} 2. Bb2 {[%clk 0:04:52.7]}
2... b6 {[%clk 0:04:57.4]} 3. e3 {[%clk 0:04:50.2]} 3... Bb7 {[%clk 0:04:56.7]}
4. Nf3 {[%clk 0:04:48]} 4... e6 {[%clk 0:04:56]} 5. d4 {[%clk 0:04:44.9]} 5...
Nf6 {[%clk 0:04:55.4]} 6. Nbd2 {[%clk 0:04:38.3]} 6... Be7 {[%clk 0:04:54.1]} 7.
c4 {[%clk 0:04:36]} 7... O-O {[%clk 0:04:53]} 8. dxc5 {[%clk 0:04:29.4]} 8...
Bxc5 {[%clk 0:04:51]} 9. Qc2 {[%clk 0:04:18.4]} 9... d5 {[%clk 0:04:49.3]} 10.
Ng5 {[%clk 0:04:04]} 10... d4 {[%clk 0:04:38.3]} 11. exd4 {[%clk 0:03:41.9]}
11... Bxd4 {[%clk 0:04:36.3]} 12. Bxd4 {[%clk 0:03:33.6]} 12... Qxd4 {[%clk
0:04:36.2]} 13. O-O-O {[%clk 0:03:25]} 13... h6 {[%clk 0:04:29.2]} 14. Ngf3
{[%clk 0:03:19]} 14... Qa1+ {[%clk 0:04:26.4]} 15. Nb1 {[%clk 0:03:14.9]} 15...
Nc6 {[%clk 0:04:24.1]} 16. Kd2 {[%clk 0:02:54.5]} 16... Rad8+ {[%clk 0:04:20]}
17. Bd3 {[%clk 0:02:52.2]} 17... Nb4 {[%clk 0:04:18.4]} 18. Qc3 {[%clk
0:02:40.5]} 18... Rxd3+ {[%clk 0:04:14.1]} 0-1

[Event "Live Chess"]
[Site "Chess.com"]
[Date "2023.05.21"]
[Round "-"]
[White "matt1979"]
[Black "friarnator"]
[Result "0-1"]
[WhiteElo "1534"]
[BlackElo "2030"]
[TimeControl "300"]
[EndTime "8:42:46 PDT"]
[Termination "friarnator won by resignation"]

1. f4 {[%clk 0:04:58.3]} 1... e5 {[%clk 0:04:58.4]} 2. fxe5 {[%clk 0:04:56.5]}
2... d6 {[%clk 0:04:54.7]} 3. exd6 {[%clk 0:04:55.4]} 3... Bxd6 {[%clk
0:04:52.5]} 4. Nf3 {[%clk 0:04:53.9]} 4... Bg4 {[%clk 0:04:50]} 5. e4 {[%clk
0:04:47.7]} 5... Nf6 {[%clk 0:04:40.1]} 6. d3 {[%clk 0:04:31.5]} 6... O-O {[%clk
0:04:37.8]} 7. Be2 {[%clk 0:04:29.2]} 7... Nc6 {[%clk 0:04:31.4]} 8. O-O {[%clk
0:04:26.3]} 8... h6 {[%clk 0:04:23.1]} 9. h3 {[%clk 0:04:21.9]} 9... Bxf3 {[%clk
0:04:21.1]} 10. Bxf3 {[%clk 0:04:20.1]} 10... Nd4 {[%clk 0:04:18.1]} 11. c3
{[%clk 0:04:14.1]} 11... Nxf3+ {[%clk 0:04:17.1]} 12. Qxf3 {[%clk 0:04:12.3]}
12... c5 {[%clk 0:04:17]} 13. Bxh6 {[%clk 0:04:05.1]} 13... gxh6 {[%clk
0:04:10]} 14. Qxf6 {[%clk 0:04:03.7]} 14... Qxf6 {[%clk 0:04:08.3]} 15. Rxf6
{[%clk 0:04:00.1]} 15... Rad8 {[%clk 0:04:06.1]} 16. Rxh6 {[%clk 0:03:57.4]}
16... Be5 {[%clk 0:03:45]} 17. Rh5 {[%clk 0:03:50.3]} 17... f6 {[%clk
0:03:44.2]} 18. d4 {[%clk 0:03:32.7]} 18... cxd4 {[%clk 0:03:42]} 19. Na3 {[%clk
0:03:23.9]} 19... dxc3 {[%clk 0:03:40.9]} 20. Nc4 {[%clk 0:03:14.8]} 20... cxb2
{[%clk 0:03:38.8]} 21. Rb1 {[%clk 0:03:12.9]} 21... Rc8 {[%clk 0:03:37.5]} 22.
Nxb2 {[%clk 0:03:10.4]} 22... Rc2 {[%clk 0:03:31.9]} 23. Nd3 {[%clk 0:03:03.8]}
23... Bd4+ {[%clk 0:03:30]} 24. Kh1 {[%clk 0:02:58.8]} 24... Rf7 {[%clk
0:03:28.8]} 25. Nf4 {[%clk 0:02:46.2]} 25... Be5 {[%clk 0:03:19.7]} 26. Ng6
{[%clk 0:02:40.2]} 26... Rg7 {[%clk 0:03:17.7]} 27. Rh8+ {[%clk 0:02:38.2]}
27... Kf7 {[%clk 0:03:16.3]} 28. Nxe5+ {[%clk 0:02:36.2]} 28... fxe5 {[%clk
0:03:13.4]} 29. g4 {[%clk 0:02:33.5]} 29... Kg6 {[%clk 0:03:10.8]} 30. Rh5
{[%clk 0:02:26.8]} 30... Rd7 {[%clk 0:03:08.3]} 31. Rxe5 {[%clk 0:02:24]} 31...
Rdd2 {[%clk 0:03:06.7]} 32. Re6+ {[%clk 0:02:21]} 32... Kg5 {[%clk 0:03:05.6]}
33. Re5+ {[%clk 0:02:19.1]} 33... Kh4 {[%clk 0:03:04.9]} 34. Rh5+ {[%clk
0:02:17.3]} 34... Kg3 {[%clk 0:03:02.7]} 35. Rg1+ {[%clk 0:02:15.8]} 35... Kf3
{[%clk 0:03:00.3]} 36. Rf1+ {[%clk 0:02:12.8]} 36... Kxe4 {[%clk 0:02:58.4]} 37.
Re1+ {[%clk 0:02:11.6]} 37... Kd4 {[%clk 0:02:56]} 38. Rhe5 {[%clk 0:02:03]}
38... Rh2+ {[%clk 0:02:50.4]} 39. Kg1 {[%clk 0:02:00.2]} 39... Rxh3 {[%clk
0:02:50.3]} 40. R1e4+ {[%clk 0:01:52.5]} 40... Kd3 {[%clk 0:02:49.6]} 41. g5
{[%clk 0:01:46.7]} 41... Rg3+ {[%clk 0:02:47.5]} 42. Kf1 {[%clk 0:01:42.9]}
42... Rc1+ {[%clk 0:02:39.4]} 43. Kf2 {[%clk 0:01:41.4]} 43... Rgg1 {[%clk
0:02:33.2]} 44. Re3+ {[%clk 0:01:39.4]} 44... Kd4 {[%clk 0:02:31.5]} 45. R5e4+
{[%clk 0:01:38.2]} 45... Kd5 {[%clk 0:02:30.7]} 46. Re5+ {[%clk 0:01:37]} 46...
Kd4 {[%clk 0:02:30]} 47. R5e4+ {[%clk 0:01:36.1]} 47... Kc5 {[%clk 0:02:28.4]}
48. Re5+ {[%clk 0:01:34.4]} 48... Kb4 {[%clk 0:02:27.6]} 49. R5e4+ {[%clk
0:01:33]} 49... Ka5 {[%clk 0:02:26.2]} 50. Re5+ {[%clk 0:01:31.8]} 50... b5
{[%clk 0:02:24.4]} 51. Rb3 {[%clk 0:01:24.8]} 51... Rcf1+ {[%clk 0:02:22.1]} 52.
Ke2 {[%clk 0:01:23.5]} 52... Re1+ {[%clk 0:02:21.4]} 53. Kf2 {[%clk 0:01:22.2]}
53... Rxe5 {[%clk 0:02:20.9]} 54. Kxg1 {[%clk 0:01:21.1]} 54... Rxg5+ {[%clk
0:02:20.8]} 55. Kf2 {[%clk 0:01:17.9]} 55... Re5 {[%clk 0:02:20.4]} 56. Kf3
{[%clk 0:01:16.9]} 56... b4 {[%clk 0:02:19]} 57. a3 {[%clk 0:01:14.4]} 57... Ka4
{[%clk 0:02:11.4]} 58. Rxb4+ {[%clk 0:01:12.9]} 58... Kxa3 {[%clk 0:02:10.9]}
59. Rb7 {[%clk 0:01:10.6]} 59... a5 {[%clk 0:02:09.8]} 60. Ra7 {[%clk 0:01:09]}
60... a4 {[%clk 0:02:08.3]} 61. Kf4 {[%clk 0:01:07.7]} 61... Re8 {[%clk
0:02:06.3]} 62. Kf3 {[%clk 0:01:05.2]} 62... Kb3 {[%clk 0:02:05.1]} 63. Kf2
{[%clk 0:01:01.7]} 63... a3 {[%clk 0:02:03.3]} 64. Rb7+ {[%clk 0:00:59.9]} 64...
Ka2 {[%clk 0:02:02.2]} 65. Kf3 {[%clk 0:00:53.9]} 65... Ka1 {[%clk 0:02:01.1]}
66. Kf4 {[%clk 0:00:51]} 66... a2 {[%clk 0:02:00.1]} 67. Kf5 {[%clk 0:00:48.5]}
67... Re2 {[%clk 0:01:58.5]} 68. Kf4 {[%clk 0:00:45]} 68... Rb2 {[%clk
0:01:55.1]} 69. Ra7 {[%clk 0:00:42.3]} 69... Kb1 {[%clk 0:01:53.9]} 70. Re7
{[%clk 0:00:38.1]} 70... a1=Q {[%clk 0:01:53.8]} 71. Re1+ {[%clk 0:00:35.3]}
71... Ka2 {[%clk 0:01:53.2]} 72. Rxa1+ {[%clk 0:00:33.8]} 72... Kxa1 {[%clk
0:01:53.1]} 0-1

[Event "Live Chess"]
[Site "Chess.com"]
[Date "2023.05.21"]
[Round "-"]
[White "zdanevych"]
[Black "ossie57"]
[Result "1-0"]
[WhiteElo "1475"]
[BlackElo "1818"]
[TimeControl "300"]
[EndTime "8:43:07 PDT"]
[Termination "zdanevych won by resignation"]

1. d4 {[%clk 0:04:59]} 1... d5 {[%clk 0:04:59.3]} 2. c4 {[%clk 0:04:58.4]} 2...
c5 {[%clk 0:04:57.6]} 3. Nf3 {[%clk 0:04:55.8]} 3... dxc4 {[%clk 0:04:56.8]} 4.
e4 {[%clk 0:04:50.8]} 4... Bg4 {[%clk 0:04:52.5]} 5. Bxc4 {[%clk 0:04:48.1]}
5... Bxf3 {[%clk 0:04:51]} 6. Qxf3 {[%clk 0:04:48]} 6... e6 {[%clk 0:04:49.1]}
7. dxc5 {[%clk 0:04:44.3]} 7... Bxc5 {[%clk 0:04:39.6]} 8. Bxe6 {[%clk 0:04:35]}
8... fxe6 {[%clk 0:04:35.8]} 9. Qh5+ {[%clk 0:04:33.5]} 9... g6 {[%clk
0:04:26.2]} 10. Qxc5 {[%clk 0:04:32.9]} 10... Nd7 {[%clk 0:04:20.1]} 11. Qc3
{[%clk 0:04:27.9]} 11... Rc8 {[%clk 0:04:18.3]} 12. Qxh8 {[%clk 0:04:26]} 12...
Rxc1+ {[%clk 0:04:17.4]} 13. Ke2 {[%clk 0:04:23.6]} 13... Rc2+ {[%clk 0:04:16]}
14. Nd2 {[%clk 0:04:20.9]} 14... Kf8 {[%clk 0:04:03.5]} 15. Qxh7 {[%clk
0:04:12.7]} 15... Qg5 {[%clk 0:03:51.9]} 16. Qxd7 {[%clk 0:04:03]} 16... Nf6
{[%clk 0:03:42.5]} 17. Qd3 {[%clk 0:03:54]} 17... Qg4+ {[%clk 0:03:28.3]} 18.
Qf3 {[%clk 0:03:46.6]} 18... Qg5 {[%clk 0:03:23.4]} 19. Rad1 {[%clk 0:03:40]}
19... Qb5+ {[%clk 0:03:19.3]} 20. Qd3 {[%clk 0:03:31]} 20... Qh5+ {[%clk
0:03:17.7]} 21. f3 {[%clk 0:03:28]} 21... Rc6 {[%clk 0:03:10.9]} 22. Qd8+ {[%clk
0:03:23.6]} 22... Kf7 {[%clk 0:03:04]} 23. Qd3 {[%clk 0:03:18.1]} 23... Qg5
{[%clk 0:03:01.1]} 24. g3 {[%clk 0:03:14.2]} 24... Qh6 {[%clk 0:02:50.7]} 25.
Qe3 {[%clk 0:03:11.4]} 25... Qh3 {[%clk 0:02:49.2]} 26. Qf2 {[%clk 0:03:08.3]}
26... Qh6 {[%clk 0:02:45.3]} 27. Rc1 {[%clk 0:03:04]} 27... Rd6 {[%clk
0:02:44.1]} 28. Rhd1 {[%clk 0:02:59.7]} 1-0